[Event "Polofinale MCR junioru 2023"]
[Site "Czech Republic"]
[Date "2023.11.12"]
[Round "2.27"]
[White "Nespurek, Jakub"]
[Black "Svacina, Tobias"]
[Result "0-1"]
[TimeControl "90 min per 40 moves + 15 min + 30 sec / move from move 1"]
[WhiteFideId "391816"]
[BlackFideId "385859"]
[WhiteElo "1680"]
[BlackElo "1941"]

1. e4 {[%clk 01:30:50]} {[%emt 00:00:09]} c5 {[%clk 01:29:37]} {[%emt
00:01:24]} 2. c3 {[%clk 01:30:10]} {[%emt 00:01:10]} Nf6 {[%clk 01:29:16]}
{[%emt 00:00:51]} 3. e5 {[%clk 01:29:59]} {[%emt 00:00:41]} Nd5 {[%clk
01:28:23]} {[%emt 00:01:23]} 4. d4 {[%clk 01:29:19]} {[%emt 00:01:09]} cxd4
{[%clk 01:27:20]} {[%emt 00:01:33]} 5. cxd4 {[%clk 01:29:11]} {[%emt 00:00:38]}
d6 {[%clk 01:26:56]} {[%emt 00:00:53]} 6. Nf3 {[%clk 01:27:21]} {[%emt
00:02:20]} Nc6 {[%clk 01:26:15]} {[%emt 00:01:12]} 7. Bc4 {[%clk 01:23:35]}
{[%emt 00:04:16]} Nb6 {[%clk 01:25:13]} {[%emt 00:01:32]} 8. Bb5 {[%clk
01:22:56]} {[%emt 00:01:08]} dxe5 {[%clk 01:25:03]} {[%emt 00:00:41]} 9. Nxe5
{[%clk 01:20:12]} {[%emt 00:03:14]} Bd7 {[%clk 01:25:08]} {[%emt 00:00:24]} 10.
Nxd7 {[%clk 01:16:56]} {[%emt 00:03:45]} Qxd7 {[%clk 01:25:23]} {[%emt
00:00:15]} 11. Be3 {[%clk 01:15:26]} {[%emt 00:02:00]} Qd5 {[%clk 01:16:36]}
{[%emt 00:09:17]} 12. Bxc6+ {[%clk 01:15:32]} {[%emt 00:00:24]} Qxc6 {[%clk
01:16:36]} {[%emt 00:00:30]} 13. O-O {[%clk 01:15:30]} {[%emt 00:00:32]} e6
{[%clk 01:02:12]} {[%emt 00:14:54]} 14. Nc3 {[%clk 01:15:09]} {[%emt 00:00:51]}
Be7 {[%clk 01:00:24]} {[%emt 00:02:18]} 15. Rc1 {[%clk 01:13:20]} {[%emt
00:02:18]} O-O {[%clk 00:58:53]} {[%emt 00:02:02]} 16. Qd3 {[%clk 01:09:08]}
{[%emt 00:04:41]} Rac8 {[%clk 00:50:45]} {[%emt 00:08:39]} 17. Qb5 {[%clk
00:56:26]} {[%emt 00:13:09]} Qxb5 {[%clk 00:44:43]} {[%emt 00:06:35]} 18. Nxb5
{[%clk 00:56:49]} {[%emt 00:00:07]} a6 {[%clk 00:44:35]} {[%emt 00:00:39]} 19.
Nc3 {[%clk 00:56:23]} {[%emt 00:00:54]} Nc4 {[%clk 00:42:02]} {[%emt 00:03:04]}
20. Rc2 {[%clk 00:43:09]} {[%emt 00:13:44]} Nxb2 {[%clk 00:31:10]} {[%emt
00:11:22]} 21. Rxb2 {[%clk 00:43:15]} {[%emt 00:00:24]} Rxc3 {[%clk 00:31:34]}
{[%emt 00:00:06]} 22. Rxb7 {[%clk 00:43:11]} {[%emt 00:00:34]} Bf6 {[%clk
00:31:49]} {[%emt 00:00:15]} 23. Rb3 {[%clk 00:38:46]} {[%emt 00:04:55]} Rxb3
{[%emt 00:03:22]} 24. axb3 {[%clk 00:39:10]} {[%emt 00:00:05]} Rb8 {[%clk
00:29:01]} {[%emt 00:00:27]} 25. Rb1 {[%clk 00:33:58]} {[%emt 00:05:42]} Rb4
{[%clk 00:25:27]} {[%emt 00:04:04]} 26. Kf1 {[%clk 00:25:56]} {[%emt 00:08:32]}
Bxd4 {[%clk 00:22:56]} {[%emt 00:03:01]} 27. Bxd4 {[%clk 00:26:04]} {[%emt
00:00:22]} Rxd4 {[%clk 00:23:15]} {[%emt 00:00:11]} 28. Ra1 {[%clk 00:26:21]}
{[%emt 00:00:13]} Rd6 {[%clk 00:23:27]} {[%emt 00:00:18]} 29. Ke2 {[%clk
00:26:10]} {[%emt 00:00:41]} Kf8 {[%clk 00:23:24]} {[%emt 00:00:33]} 30. Ke3
{[%clk 00:25:46]} {[%emt 00:00:53]} Ke7 {[%clk 00:23:07]} {[%emt 00:00:47]} 31.
Ra5 {[%clk 00:25:44]} {[%emt 00:00:32]} Kf6 {[%clk 00:21:11]} {[%emt 00:02:27]}
32. Ke4 {[%clk 00:25:30]} {[%emt 00:00:44]} h6 {[%clk 00:18:39]} {[%emt
00:03:02]} 33. g4 {[%clk 00:23:36]} {[%emt 00:02:23]} Rb6 {[%clk 00:15:29]}
{[%emt 00:03:41]} 34. Ra3 {[%clk 00:23:13]} {[%emt 00:00:53]} Kg5 {[%clk
00:14:45]} {[%emt 00:01:14]} 35. Kf3 {[%clk 00:21:12]} {[%emt 00:02:31]} Kh4
{[%clk 00:13:17]} {[%emt 00:01:59]} 36. Kf4 {[%clk 00:17:44]} {[%emt 00:03:58]}
Rb4+ {[%clk 00:12:14]} {[%emt 00:01:34]} 37. Kf3 {[%clk 00:18:04]} {[%emt
00:00:10]} Rb6 {[%clk 00:12:40]} {[%emt 00:00:04]} 38. Kf4 {[%clk 00:18:08]}
{[%emt 00:00:25]} Kh3 {[%clk 00:11:26]} {[%emt 00:01:44]} 39. f3 {[%clk
00:12:52]} {[%emt 00:05:46]} f6 {[%clk 00:09:10]} {[%emt 00:02:46]} 40. Ke3
{[%clk 00:12:39]} {[%emt 00:00:42]} Kxh2 {[%clk 00:08:30]} {[%emt 00:01:10]} 41.
Kf2 {[%clk 00:12:28]} {[%emt 00:00:41]} e5 {[%clk 00:05:15]} {[%emt 00:03:46]}
42. Ke3 {[%clk 00:10:43]} {[%emt 00:02:15]} Kg3 {[%clk 00:04:10]} {[%emt
00:01:36]} 0-1

[Event "Polofinale MCR junioru 2023"]
[Site "Czech Republic"]
[Date "2023.11.12"]
[Round "2.28"]
[White "Slaby, Matej"]
[Black "Svadlenka, Michal"]
[Result "0-1"]
[TimeControl "90 min per 40 moves + 15 min + 30 sec / move from move 1"]
[WhiteFideId "23734876"]
[BlackFideId "23717068"]
[WhiteElo "1940"]
[BlackElo "1689"]

1. d4 {[%clk 01:30:57]} {[%emt 00:00:01]} Nf6 {[%clk 01:30:07]} {[%emt
00:00:54]} 2. Nf3 {[%clk 01:31:17]} {[%emt 00:00:09]} g6 {[%clk 01:30:22]}
{[%emt 00:00:16]} 3. Bf4 {[%clk 01:31:36]} {[%emt 00:00:10]} Bg7 {[%clk
01:30:43]} {[%emt 00:00:09]} 4. e3 {[%clk 01:31:57]} {[%emt 00:00:08]} O-O
{[%clk 01:31:00]} {[%emt 00:00:14]} 5. h3 {[%clk 01:32:16]} {[%emt 00:00:11]}
d5 {[%clk 01:26:41]} {[%emt 00:04:49]} 6. Be2 {[%clk 01:32:35]} {[%emt
00:00:10]} e6 {[%clk 01:26:55]} {[%emt 00:00:17]} 7. O-O {[%clk 01:32:05]}
{[%emt 00:00:59]} Nbd7 {[%clk 01:25:20]} {[%emt 00:02:05]} 8. Nbd2 {[%clk
01:28:32]} {[%emt 00:04:02]} b6 {[%clk 01:21:25]} {[%emt 00:04:26]} 9. a4
{[%clk 01:18:48]} {[%emt 00:10:14]} a5 {[%clk 01:17:15]} {[%emt 00:04:40]} 10.
Re1 {[%clk 01:18:30]} {[%emt 00:00:48]} Bb7 {[%clk 01:17:26]} {[%emt 00:00:20]}
11. Ne5 {[%clk 01:16:29]} {[%emt 00:02:30]} Rc8 {[%clk 01:17:06]} {[%emt
00:00:51]} 12. c3 {[%clk 01:12:45]} {[%emt 00:04:13]} Qe7 {[%clk 01:16:02]}
{[%emt 00:01:34]} 13. Bh2 {[%clk 01:06:38]} {[%emt 00:06:37]} c5 {[%clk
01:14:32]} {[%emt 00:02:00]} 14. Bb5 {[%clk 01:05:29]} {[%emt 00:01:38]} Nxe5
{[%clk 01:13:27]} {[%emt 00:01:36]} 15. Bxe5 {[%clk 01:05:50]} {[%emt
00:00:09]} Bc6 {[%clk 01:13:07]} {[%emt 00:00:50]} 16. Qe2 {[%clk 00:58:17]}
{[%emt 00:08:03]} Nd7 {[%clk 01:09:38]} {[%emt 00:03:59]} 17. Bxg7 {[%clk
00:58:10]} {[%emt 00:00:37]} Kxg7 {[%clk 01:09:59]} {[%emt 00:00:10]} 18. Bxc6
{[%clk 00:52:23]} {[%emt 00:06:17]} Rxc6 {[%clk 01:10:27]} {[%emt 00:00:02]} 19.
e4 {[%clk 00:52:31]} {[%emt 00:00:22]} dxe4 {[%clk 01:07:39]} {[%emt 00:03:18]}
20. Qxe4 {[%clk 00:52:45]} {[%emt 00:00:15]} Rd6 {[%clk 01:04:45]} {[%emt
00:03:24]} 21. Nc4 {[%clk 00:46:24]} {[%emt 00:06:51]} Nf6 {[%clk 01:03:02]}
{[%emt 00:02:13]} 22. Qf3 {[%clk 00:35:55]} {[%emt 00:10:59]} Rdd8 {[%clk
01:01:13]} {[%emt 00:02:19]} 23. Ne5 {[%clk 00:32:24]} {[%emt 00:04:01]} Qc7
{[%clk 00:58:31]} {[%emt 00:03:13]} 24. dxc5 {[%clk 00:24:05]} {[%emt
00:08:48]} Qxc5 {[%clk 00:57:49]} {[%emt 00:01:12]} 25. b4 {[%clk 00:24:14]}
{[%emt 00:00:20]} Qd5 {[%clk 00:56:16]} {[%emt 00:02:04]} 26. Qe2 {[%clk
00:18:37]} {[%emt 00:06:07]} Rc8 {[%clk 00:38:25]} {[%emt 00:18:21]} 27. Qb2
{[%clk 00:06:40]} {[%emt 00:12:26]} Rfd8 {[%clk 00:33:10]} {[%emt 00:05:46]} 28.
Qe2 {[%clk 00:00:31]} {[%emt 00:06:39]} Rxc3 {[%clk 00:30:42]} {[%emt
00:02:58]} 29. Rad1 {[%clk 00:00:38]} {[%emt 00:00:23]} Qa8 {[%clk 00:31:06]}
{[%emt 00:00:06]} 30. Rxd8 Qxd8 {[%clk 00:31:33]} 31. Rd1 {[%clk 00:00:31]}
{[%emt 00:00:32]} Qc7 {[%clk 00:31:12]} {[%emt 00:00:51]} 32. b5 {[%clk
00:00:35]} {[%emt 00:00:26]} Qc5 {[%clk 00:28:52]} {[%emt 00:02:50]} 33. g3
{[%clk 00:00:31]} {[%emt 00:00:35]} Rxg3+ {[%clk 00:28:24]} {[%emt 00:00:59]}
34. Kh2 {[%clk 00:00:56]} {[%emt 00:00:04]} Rc3 {[%clk 00:27:56]} {[%emt
00:00:58]} 35. Rd2 {[%clk 00:00:31]} {[%emt 00:00:56]} Nd5 {[%clk 00:26:51]}
{[%emt 00:01:34]} 36. Qe4 {[%clk 00:00:33]} {[%emt 00:00:29]} Qa3 {[%clk
00:19:53]} {[%emt 00:07:28]} 37. Nd3 {[%clk 00:00:33]} {[%emt 00:00:30]} Qd6+
{[%clk 00:17:36]} {[%emt 00:02:48]} 38. Kg2 {[%clk 00:00:46]} {[%emt 00:00:16]}
Nb4 {[%clk 00:11:28]} {[%emt 00:06:38]} 39. Nxb4 {[%clk 00:00:35]} {[%emt
00:00:40]} Qxd2 {[%clk 00:11:40]} {[%emt 00:00:19]} 40. Qe5+ {[%clk 00:01:00]}
{[%emt 00:00:05]} f6 {[%clk 00:11:25]} {[%emt 00:00:45]} 41. Qxe6 {[%clk
00:01:18]} {[%emt 00:00:12]} axb4 {[%clk 00:11:25]} {[%emt 00:00:30]} 0-1

[Event "Polofinale MCR junioru 2023"]
[Site "Czech Republic"]
[Date "2023.11.12"]
[Round "2.29"]
[White "Cerny, Michal"]
[Black "Urbansky, Stepan"]
[Result "1/2-1/2"]
[TimeControl "90 min per 40 moves + 15 min + 30 sec / move from move 1"]
[WhiteFideId "391964"]
[BlackFideId "23761741"]
[WhiteElo "1920"]
[BlackElo "1675"]

1. e4 {[%clk 01:30:58]} {[%emt 00:00:01]} c5 {[%clk 01:30:51]} {[%emt
00:00:09]} 2. Nf3 {[%clk 01:31:23]} {[%emt 00:00:05]} d6 {[%clk 01:31:14]}
{[%emt 00:00:06]} 3. d4 {[%clk 01:31:47]} {[%emt 00:00:06]} cxd4 {[%clk
01:31:40]} {[%emt 00:00:04]} 4. Nxd4 {[%clk 01:32:13]} {[%emt 00:00:05]} Nf6
{[%clk 01:32:02]} {[%emt 00:00:08]} 5. Nc3 {[%clk 01:32:39]} {[%emt 00:00:04]}
a6 {[%clk 01:32:23]} {[%emt 00:00:09]} 6. Be2 {[%clk 01:32:56]} {[%emt
00:00:12]} e5 {[%clk 01:32:40]} {[%emt 00:00:12]} 7. Nb3 {[%clk 01:33:17]}
{[%emt 00:00:10]} Be7 {[%clk 01:32:39]} {[%emt 00:00:30]} 8. O-O {[%clk
01:33:34]} {[%emt 00:00:14]} O-O {[%clk 01:32:43]} {[%emt 00:00:25]} 9. Be3
{[%clk 01:29:09]} {[%emt 00:04:55]} Be6 {[%clk 01:31:20]} {[%emt 00:01:53]} 10.
f4 {[%clk 01:26:14]} {[%emt 00:03:25]} exf4 {[%clk 01:27:26]} {[%emt 00:04:24]}
11. Bxf4 {[%clk 01:24:32]} {[%emt 00:02:12]} Nc6 {[%clk 01:27:25]} {[%emt
00:00:31]} 12. Kh1 {[%clk 01:23:28]} {[%emt 00:01:34]} Rc8 {[%clk 01:22:22]}
{[%emt 00:05:33]} 13. Qe1 {[%clk 01:19:16]} {[%emt 00:04:42]} Nd7 {[%clk
01:13:45]} {[%emt 00:09:07]} 14. Rd1 {[%clk 01:13:55]} {[%emt 00:05:51]} Nde5
{[%clk 01:13:19]} {[%emt 00:00:55]} 15. Nd5 {[%clk 01:11:15]} {[%emt 00:03:10]}
Bxd5 {[%clk 01:06:27]} {[%emt 00:07:22]} 16. exd5 {[%clk 01:00:43]} {[%emt
00:11:02]} Nb8 {[%clk 01:06:03]} {[%emt 00:00:54]} 17. Bxe5 {[%clk 00:59:07]}
{[%emt 00:02:06]} dxe5 {[%clk 01:05:45]} {[%emt 00:00:48]} 18. Bd3 {[%clk
00:58:49]} {[%emt 00:00:48]} Bd6 {[%clk 01:04:20]} {[%emt 00:01:54]} 19. Na5
{[%clk 00:52:41]} {[%emt 00:06:38]} b5 {[%clk 00:55:17]} {[%emt 00:09:33]} 20.
Nb7 {[%clk 00:48:49]} {[%emt 00:04:22]} Qc7 {[%clk 00:55:35]} {[%emt 00:00:12]}
21. Nxd6 {[%clk 00:48:37]} {[%emt 00:00:42]} Qxd6 {[%clk 00:55:56]} {[%emt
00:00:09]} 22. Qh4 {[%clk 00:48:45]} {[%emt 00:00:22]} g6 {[%clk 00:53:11]}
{[%emt 00:03:15]} 23. c3 {[%clk 00:37:50]} {[%emt 00:11:25]} Nd7 {[%clk
00:49:13]} {[%emt 00:04:28]} 24. a4 {[%clk 00:36:24]} {[%emt 00:01:57]} Rb8
{[%clk 00:44:08]} {[%emt 00:05:35]} 25. axb5 {[%clk 00:27:55]} {[%emt
00:08:59]} axb5 {[%clk 00:44:04]} {[%emt 00:00:34]} 26. Be2 {[%clk 00:26:51]}
{[%emt 00:01:33]} f5 {[%clk 00:43:32]} {[%emt 00:01:02]} 27. Qb4 {[%clk
00:18:56]} {[%emt 00:08:26]} Rf6 {[%clk 00:36:51]} {[%emt 00:07:11]} 28. Qa5
{[%clk 00:16:09]} {[%emt 00:03:17]} Qb6 {[%clk 00:29:34]} {[%emt 00:07:46]} 29.
Qb4 {[%clk 00:15:59]} {[%emt 00:00:41]} Rd6 {[%clk 00:22:17]} {[%emt 00:07:46]}
30. Bxb5 {[%clk 00:14:51]} {[%emt 00:01:40]} Nc5 {[%clk 00:20:57]} {[%emt
00:01:48]} 31. c4 {[%clk 00:14:49]} {[%emt 00:00:32]} e4 {[%clk 00:20:48]}
{[%emt 00:00:39]} 32. Qd2 {[%clk 00:13:21]} {[%emt 00:01:59]} Nd3 {[%clk
00:17:50]} {[%emt 00:03:27]} 33. h3 {[%clk 00:08:36]} {[%emt 00:05:15]} Qc5
{[%clk 00:16:09]} {[%emt 00:02:11]} 34. g4 {[%clk 00:06:56]} {[%emt 00:02:11]}
f4 {[%clk 00:15:20]} {[%emt 00:01:19]} 35. Rxf4 {[%clk 00:06:51]} {[%emt
00:00:35]} Nxf4 {[%clk 00:15:14]} {[%emt 00:00:36]} 36. Qxf4 {[%clk 00:07:19]}
{[%emt 00:00:02]} e3 {[%clk 00:12:05]} {[%emt 00:03:40]} 37. Re1 {[%clk
00:05:04]} {[%emt 00:02:45]} Rxb5 {[%clk 00:04:07]} {[%emt 00:08:28]} 38. cxb5
{[%clk 00:05:32]} {[%emt 00:00:02]} Qxd5+ {[%clk 00:04:15]} {[%emt 00:00:21]}
39. Kg1 {[%clk 00:06:01]} Re6 {[%clk 00:02:22]} {[%emt 00:02:24]} 40. Rxe3
{[%clk 00:01:55]} {[%emt 00:04:37]} Qd1+ {[%clk 00:01:31]} {[%emt 00:01:21]} 41.
Kf2 {[%clk 00:02:23]} {[%emt 00:00:02]} Qd2+ {[%clk 00:15:06]} {[%emt
00:02:25]} 42. Kf3 {[%clk 00:18:48]} {[%emt 00:00:05]} Qd1+ {[%clk 00:11:25]}
{[%emt 00:04:10]} 43. Kg3 {[%clk 00:19:10]} {[%emt 00:00:09]} Qg1+ {[%clk
00:10:48]} {[%emt 00:01:07]} 44. Kf3 {[%clk 00:19:32]} {[%emt 00:00:08]} Qf1+
{[%clk 00:09:17]} {[%emt 00:02:00]} 1/2-1/2

[Event "Polofinale MCR junioru 2023"]
[Site "Czech Republic"]
[Date "2023.11.12"]
[Round "2.30"]
[White "Zezula, Matej"]
[Black "Hrbek, Jachym"]
[Result "0-1"]
[TimeControl "90 min per 40 moves + 15 min + 30 sec / move from move 1"]
[WhiteFideId "23725796"]
[BlackFideId "23709138"]
[WhiteElo "1666"]
[BlackElo "1913"]

1. e4 {[%clk 01:30:57]} {[%emt 00:00:03]} c6 {[%clk 01:30:38]} {[%emt
00:00:22]} 2. d4 {[%clk 01:30:54]} {[%emt 00:00:33]} d5 {[%clk 01:30:59]}
{[%emt 00:00:09]} 3. exd5 {[%clk 01:30:52]} {[%emt 00:00:33]} cxd5 {[%clk
01:31:18]} {[%emt 00:00:10]} 4. c4 {[%clk 01:31:12]} {[%emt 00:00:11]} Nf6
{[%clk 01:31:25]} {[%emt 00:00:22]} 5. Nc3 {[%clk 01:31:31]} {[%emt 00:00:11]}
Nc6 {[%clk 01:31:43]} {[%emt 00:00:13]} 6. Nf3 {[%clk 01:25:55]} {[%emt
00:06:06]} Be6 {[%clk 01:31:54]} {[%emt 00:00:18]} 7. c5 {[%clk 01:24:22]}
{[%emt 00:02:04]} a6 {[%clk 01:31:40]} {[%emt 00:00:44]} 8. Bf4 {[%clk
01:20:01]} {[%emt 00:04:50]} g6 {[%clk 01:27:29]} {[%emt 00:04:41]} 9. Be2
{[%clk 01:15:11]} {[%emt 00:05:21]} Bg7 {[%clk 01:27:01]} {[%emt 00:00:56]} 10.
O-O {[%clk 01:15:03]} {[%emt 00:00:40]} O-O {[%clk 01:18:50]} {[%emt 00:08:41]}
11. Na4 {[%clk 01:09:51]} {[%emt 00:05:42]} Nd7 {[%clk 01:17:51]} {[%emt
00:01:25]} 12. h3 {[%clk 01:07:59]} {[%emt 00:02:24]} Qa5 {[%clk 01:14:30]}
{[%emt 00:03:49]} 13. Rc1 {[%clk 01:05:21]} {[%emt 00:03:10]} Bf5 {[%clk
01:07:24]} {[%emt 00:07:36]} 14. Nc3 {[%clk 00:56:36]} {[%emt 00:09:16]} Be4
{[%clk 01:03:52]} {[%emt 00:04:01]} 15. Be3 {[%clk 00:56:04]} {[%emt 00:01:02]}
Bxf3 {[%clk 01:03:14]} {[%emt 00:01:08]} 16. Bxf3 {[%clk 00:56:23]} {[%emt
00:00:11]} e6 {[%clk 01:03:24]} {[%emt 00:00:18]} 17. a3 {[%clk 00:53:21]}
{[%emt 00:03:34]} Rac8 {[%clk 00:58:05]} {[%emt 00:05:45]} 18. Ne2 {[%clk
00:50:10]} {[%emt 00:03:46]} b6 {[%clk 00:52:39]} {[%emt 00:05:55]} 19. Bd2
{[%clk 00:47:24]} {[%emt 00:03:16]} Qb5 {[%clk 00:52:55]} {[%emt 00:00:12]} 20.
a4 {[%clk 00:42:09]} {[%emt 00:05:47]} Qd3 {[%clk 00:52:50]} {[%emt 00:00:35]}
21. Rc3 {[%clk 00:33:18]} {[%emt 00:09:21]} Qf5 {[%clk 00:53:03]} {[%emt
00:00:17]} 22. Qc1 {[%clk 00:24:44]} {[%emt 00:09:04]} Nxd4 {[%clk 00:50:15]}
{[%emt 00:03:18]} 23. Nxd4 {[%clk 00:24:18]} {[%emt 00:00:56]} Bxd4 {[%clk
00:50:26]} {[%emt 00:00:17]} 24. Bg4 {[%clk 00:23:19]} {[%emt 00:01:30]} Qe5
{[%clk 00:49:55]} {[%emt 00:00:56]} 25. Bf4 {[%clk 00:20:57]} {[%emt 00:02:57]}
Qh8 {[%clk 00:49:08]} {[%emt 00:01:13]} 26. c6 {[%clk 00:19:33]} {[%emt
00:01:59]} Nc5 {[%clk 00:47:40]} {[%emt 00:01:57]} 27. Rg3 {[%clk 00:12:22]}
{[%emt 00:07:38]} Bxb2 {[%clk 00:46:09]} {[%emt 00:02:04]} 28. Qe3 {[%clk
00:10:35]} {[%emt 00:02:17]} Ne4 {[%clk 00:45:17]} {[%emt 00:01:21]} 29. Bh6
{[%clk 00:09:16]} {[%emt 00:01:49]} Bd4 {[%clk 00:45:00]} {[%emt 00:00:47]} 30.
Qd3 {[%clk 00:09:04]} {[%emt 00:00:41]} Nxg3 {[%clk 00:44:23]} {[%emt
00:01:07]} 31. Qxg3 {[%clk 00:08:08]} {[%emt 00:01:26]} Bg7 {[%clk 00:44:13]}
{[%emt 00:00:40]} 32. Bf4 {[%clk 00:08:02]} {[%emt 00:00:37]} Rxc6 {[%clk
00:43:12]} {[%emt 00:01:31]} 0-1

[Event "Polofinale MCR junioru 2023"]
[Site "Czech Republic"]
[Date "2023.11.12"]
[Round "2.31"]
[White "Babula, Matej"]
[Black "Sadil, Antonin"]
[Result "1-0"]
[TimeControl "90 min per 40 moves + 15 min + 30 sec / move from move 1"]
[WhiteFideId "398322"]
[BlackFideId "23735597"]
[WhiteElo "1899"]
[BlackElo "1648"]

1. e4 {[%clk 01:30:57]} {[%emt 00:00:02]} c5 {[%clk 01:30:51]} {[%emt
00:00:10]} 2. Nf3 {[%clk 01:31:20]} {[%emt 00:00:07]} d6 {[%clk 01:31:15]}
{[%emt 00:00:07]} 3. d4 {[%clk 01:31:45]} {[%emt 00:00:04]} cxd4 {[%clk
01:31:34]} {[%emt 00:00:12]} 4. Nxd4 {[%clk 01:32:09]} {[%emt 00:00:06]} Nf6
{[%clk 01:31:53]} {[%emt 00:00:11]} 5. Nc3 {[%clk 01:32:33]} {[%emt 00:00:05]}
g6 {[%clk 01:32:17]} {[%emt 00:00:07]} 6. Be3 {[%clk 01:32:29]} {[%emt
00:00:33]} Bg7 {[%clk 01:32:34]} {[%emt 00:00:13]} 7. f3 {[%clk 01:32:44]}
{[%emt 00:00:16]} O-O {[%clk 01:32:51]} {[%emt 00:00:13]} 8. Bc4 {[%clk
01:32:53]} {[%emt 00:00:20]} Nc6 {[%clk 01:33:08]} {[%emt 00:00:13]} 9. Qd2
{[%clk 01:33:09]} {[%emt 00:00:14]} Bd7 {[%clk 01:33:29]} {[%emt 00:00:09]} 10.
h4 {[%clk 01:33:22]} {[%emt 00:00:16]} Ne5 {[%clk 01:33:23]} {[%emt 00:00:36]}
11. Bb3 {[%clk 01:33:38]} {[%emt 00:00:14]} h5 {[%clk 01:33:37]} {[%emt
00:00:16]} 12. O-O-O {[%clk 01:33:55]} {[%emt 00:00:13]} Rc8 {[%clk 01:33:52]}
{[%emt 00:00:16]} 13. Bg5 {[%clk 01:34:01]} {[%emt 00:00:23]} Qa5 {[%clk
01:23:25]} {[%emt 00:10:57]} 14. g4 {[%clk 01:29:18]} {[%emt 00:05:13]} hxg4
{[%clk 01:19:58]} {[%emt 00:03:58]} 15. Kb1 {[%clk 01:20:38]} {[%emt 00:09:11]}
Nxf3 {[%clk 01:10:43]} {[%emt 00:09:45]} 16. Nxf3 {[%clk 01:20:42]} {[%emt
00:00:24]} gxf3 {[%clk 01:11:03]} {[%emt 00:00:11]} 17. h5 {[%clk 01:06:34]}
{[%emt 00:14:37]} gxh5 {[%clk 01:02:04]} {[%emt 00:09:30]} 18. Bxf6 {[%clk
00:32:59]} {[%emt 00:34:04]} exf6 {[%clk 00:55:52]} {[%emt 00:06:43]} 19. Rdg1
{[%clk 00:23:38]} {[%emt 00:09:50]} Bg4 {[%clk 00:52:13]} {[%emt 00:04:08]} 20.
Rxg4 {[%clk 00:15:42]} {[%emt 00:08:26]} hxg4 {[%clk 00:51:28]} {[%emt
00:01:16]} 21. Nd5 {[%clk 00:15:53]} {[%emt 00:00:19]} Qd8 {[%clk 00:50:04]}
{[%emt 00:01:55]} 22. Ne3 {[%clk 00:15:27]} {[%emt 00:00:55]} g3 {[%clk
00:44:51]} {[%emt 00:05:43]} 23. Nf5 {[%clk 00:14:47]} {[%emt 00:01:11]} g2
{[%clk 00:43:49]} {[%emt 00:01:32]} 24. Rg1 {[%clk 00:15:00]} {[%emt 00:00:16]}
Rc5 {[%clk 00:39:30]} {[%emt 00:04:48]} 25. Bd5 {[%clk 00:13:17]} {[%emt
00:02:13]} Qd7 {[%clk 00:35:35]} {[%emt 00:04:24]} 26. Qf4 {[%clk 00:10:17]}
{[%emt 00:03:31]} Rxd5 {[%clk 00:26:26]} {[%emt 00:09:40]} 27. exd5 {[%clk
00:10:40]} {[%emt 00:00:08]} Qb5 {[%clk 00:22:21]} {[%emt 00:04:35]} 28. Ne7+
{[%clk 00:09:29]} {[%emt 00:01:41]} Kh7 {[%clk 00:22:42]} {[%emt 00:00:10]} 29.
Qf5+ {[%clk 00:09:52]} {[%emt 00:00:06]} Kh6 {[%clk 00:22:38]} {[%emt
00:00:33]} 30. Qh3+ {[%clk 00:10:15]} {[%emt 00:00:06]} Kg5 {[%clk 00:22:38]}
{[%emt 00:00:31]} 31. Qg3+ {[%clk 00:10:41]} {[%emt 00:00:05]} Kh6 {[%clk
00:22:02]} {[%emt 00:01:06]} 32. Qh4# {[%clk 00:11:02]} {[%emt 00:00:08]} 1-0